bitfinex/quotes_BTCUSD_20251224
["timestamp","ask_amount","ask_price","bid_price","bid_amount"]
[1766591745580,0.12437346,87006.0,86997.0,1e-08]
[1766591745779,0.11402899,87005.0,86997.0,1e-08]
[1766591745976,0.12444,87004.0,86997.0,1e-08]
[1766591746181,0.00010632,87007.0,86997.0,1e-08]
[1766591746380,0.01156,87006.0,86997.0,1e-08]
[1766591746583,0.02305346,87006.0,86997.0,1e-08]
[1766591746786,0.05746854,87005.0,86997.0,1e-08]
[1766591747590,0.08052126,87006.0,86997.0,1e-08]
[1766591748665,0.01149359,87005.0,86997.0,1e-08]
[1766591749052,0.08052126,87006.0,86997.0,1e-08]
[1766591749403,0.02305346,87006.0,86997.0,1e-08]
[1766591750161,0.01156,87006.0,86997.0,0.0689678]
[1766591750359,0.01156,87006.0,86997.0,1e-08]
[1766591750711,0.01156,87006.0,86997.0,0.06896786]
[1766591750958,0.00147514,87006.0,87001.0,0.01149412]
[1766591751165,0.00147514,87006.0,87003.0,0.06896261]
[1766591751304,0.00092514,87006.0,87003.0,0.06896261]
[1766591752144,0.036732,87014.0,87003.0,0.06896261]
[1766591752145,0.036732,87014.0,87004.0,0.06896214]
[1766591752310,0.036732,87019.0,86997.0,0.01156001]
[1766591752511,0.01156,87018.0,87008.0,0.01149319]
[1766591753150,0.01156,87018.0,87007.0,0.06895985]
[1766591753311,0.01156,87018.0,87008.0,0.01149319]
[1766591753514,0.01156,87018.0,87009.0,0.01149306]
[1766591753744,0.13593187,87018.0,87005.0,0.01149359]
[1766591753942,0.18183213,87017.0,87004.0,0.06896191]
[1766591754141,0.01156,87016.0,87005.0,0.05746786]
[1766591754344,0.01156,87016.0,87008.0,0.01149319]
[1766591754575,0.02305187,87018.0,87007.0,0.01149332]
[1766591754776,0.011492,87017.0,87006.0,0.0574673]
[1766591754984,0.08051131,87018.0,87006.0,0.06896076]
[1766591755145,0.01156,87018.0,87007.0,0.05746664]
[1766591755550,0.01156,87018.0,87009.0,0.01149306]
[1766591755755,0.01156,87018.0,87008.0,0.01149319]
[1766591755957,0.01156,87018.0,87009.0,0.01149306]
[1766591756373,0.12444,87018.0,87007.0,0.06895996]
[1766591756610,0.12444,87018.0,87008.0,0.01149319]
[1766591757317,0.12444,87018.0,87009.0,0.01149306]
[1766591757526,0.11288,87018.0,87009.0,0.01149306]
[1766591757702,0.01156,87017.0,87009.0,0.01149306]
[1766591757932,0.01156,87017.0,87010.0,0.01149293]
[1766591758132,0.01156,87017.0,87009.0,0.01149306]
[1766591759123,0.01156,87017.0,87010.0,0.0689575]
[1766591759286,0.01156,87017.0,87011.0,0.01149279]
[1766591759682,0.02480091,87023.0,87011.0,0.01149279]
[1766591759683,0.01156,87018.0,87012.0,0.01149266]
[1766591760203,0.01156,87018.0,87011.0,0.06895619]
[1766591760204,0.01156,87018.0,87011.0,0.01149279]
[1766591760615,0.01156,87018.0,87009.0,0.05746531]
[1766591760816,0.01156,87018.0,87007.0,0.08051992]
[1766591761200,0.01156,87018.0,87008.0,0.01149319]
[1766591761623,0.01149253,87013.0,87007.0,0.01156]
[1766591761832,0.000549,87008.0,87003.0,0.01156]
[1766591762163,0.01156,87022.0,87013.0,0.01149253]
[1766591762362,0.01149081,87026.0,87013.0,0.01149253]
[1766591762363,0.01156,87023.0,87013.0,0.06895405]
[1766591762505,0.01156,87023.0,87014.0,0.0114924]
[1766591762890,0.01156,87023.0,87014.0,0.06895438]
[1766591763091,0.01156,87023.0,87015.0,0.01149227]
[1766591763327,0.01156,87023.0,87016.0,0.01149213]
[1766591764136,0.01156,87023.0,87016.0,0.06895277]
[1766591764338,0.01156,87023.0,87017.0,0.011492]
[1766591764502,0.01156,87023.0,87016.0,0.06895277]
[1766591764703,0.01156,87023.0,87015.0,0.06895347]
[1766591765094,0.01156,87023.0,87016.0,0.01149213]
[1766591765532,0.01156,87023.0,87017.0,0.011492]
[1766591765846,0.01156,87023.0,87014.0,0.0114924]
[1766591766043,0.01156,87023.0,87012.0,0.06895468]
[1766591766244,0.01156,87023.0,87009.0,0.05746403]
[1766591766245,0.01149161,87020.0,87009.0,0.01149306]
[1766591766444,0.118,87020.0,87010.0,0.01149293]
[1766591766653,0.118,87020.0,87009.0,0.06895811]
[1766591766945,0.01149174,87019.0,87008.0,0.02305319]
[1766591767153,0.118,87020.0,87009.0,0.01149306]
[1766591767314,0.118,87020.0,87011.0,0.01149279]
[1766591768474,0.118,87020.0,87012.0,0.01149266]
[1766591768634,0.118,87020.0,87010.0,0.01149293]
[1766591768842,0.118,87020.0,87011.0,0.01149279]
[1766591769335,0.118,87020.0,87009.0,0.01149306]
[1766591769518,0.118,87020.0,87010.0,0.01149293]
[1766591769722,0.118,87020.0,87011.0,0.01149279]
[1766591769973,0.12949161,87020.0,87009.0,0.06895802]
[1766591770162,0.118,87020.0,87010.0,0.01149293]
[1766591770364,0.118,87020.0,87010.0,0.0689575]
[1766591770562,0.118,87020.0,87011.0,0.01149279]
[1766591770782,0.01156,87020.0,87011.0,0.06895662]
[1766591771324,0.01156,87020.0,87010.0,0.0689575]
[1766591771529,0.01156,87020.0,87009.0,0.01149306]
[1766591771725,0.01156,87020.0,87008.0,0.080519]
[1766591771931,0.118,87023.0,87010.0,0.01149293]
[1766591772132,0.02305134,87022.0,87010.0,0.06895746]
[1766591772350,0.01156,87022.0,87014.0,0.0114924]
[1766591772602,0.01156,87022.0,87014.0,0.06895385]
[1766591773080,0.01156,87022.0,87013.0,0.06895409]
[1766591773267,0.01156,87022.0,87013.0,0.01149253]
[1766591773941,0.01156,87022.0,87014.0,0.0114924]
[1766591774147,0.01156,87022.0,87013.0,0.06895506]
[1766591774148,3.776e-05,87022.0,87013.0,0.01149253]
[1766591774329,0.01156,87022.0,87015.0,0.01149227]
[1766591774697,0.01156,87022.0,87003.0,0.01149385]
[1766591774892,0.01156,87022.0,87013.0,0.01149253]
[1766591775117,0.01156,87023.0,87014.0,0.05746197]
[1766591775346,0.03673618,87029.0,87014.0,0.05746197]
[1766591775347,0.01156,87024.0,87023.0,0.000511]
[1766591775524,0.036732,87029.0,87015.0,0.01149227]
[1766591775525,0.01156,87025.0,87016.0,0.06895263]
[1766591775809,0.118,87046.0,87039.0,0.0114891]
[1766591776025,0.01148672,87057.0,87030.0,0.01156]
[1766591776228,0.05264721,87068.0,87030.0,0.01156]
[1766591776229,0.118,87056.0,87049.0,0.01148778]
[1766591776425,0.118,87056.0,87050.0,0.0574382]
[1766591776626,0.118,87056.0,87051.0,0.01148751]
[1766591776801,0.118,87056.0,87046.0,0.0804886]
[1766591777034,0.01148712,87054.0,87046.0,0.01156]
[1766591777241,0.118,87054.0,87046.0,0.01156]
[1766591777457,0.12948712,87054.0,87046.0,0.01156]
[1766591777664,0.01148448,87074.0,87062.0,0.01148606]
[1766591777882,0.11811,87067.0,87057.0,0.01148672]
[1766591778089,0.11811,87067.0,87060.0,0.06891784]
[1766591778313,0.11811,87067.0,87061.0,7.4e-07]
[1766591778507,0.118,87078.0,87061.0,0.01152074]
[1766591778682,0.06890715,87074.0,87061.0,0.01152074]
[1766591778885,0.01148488,87071.0,87061.0,0.01152074]
[1766591779102,0.12948474,87072.0,87061.0,0.02300693]
[1766591779319,0.118,87072.0,87061.0,0.01152074]
[1766591779535,0.03905091,87075.0,87051.0,0.0574366]
[1766591779536,0.118,87063.0,87051.0,0.0574366]
[1766591779836,0.118,87063.0,87052.0,0.02300738]
[1766591779981,0.118,87063.0,87053.0,0.01148725]
[1766591780505,0.118,87063.0,87054.0,0.01148712]
[1766591780699,0.118,87063.0,87052.0,0.08044418]
[1766591780905,0.118,87063.0,87054.0,0.01148712]
[1766591781101,0.118,87063.0,87055.0,0.01148699]
[1766591781776,0.118,87063.0,87054.0,0.06892263]
[1766591782189,0.118,87063.0,87055.0,0.01148699]
[1766591782902,0.118,87063.0,87054.0,0.01148712]
[1766591783132,0.118,87063.0,87055.0,0.01148699]
[1766591783337,0.118,87063.0,87000.0,0.74364734]
[1766591783338,0.01148606,87062.0,87047.0,0.01148804]
[1766591783714,0.01148606,87062.0,86971.0,0.1444287]
[1766591783715,0.118,87054.0,87048.0,0.01152]
[1766591783847,0.118,87048.0,87044.0,0.01152]
[1766591784034,0.118,87048.0,87037.0,0.01148936]
[1766591784035,0.118,87048.0,87042.0,0.01152]
[1766591784431,0.01148791,87048.0,87042.0,0.01152]
[1766591784748,0.01152,87053.0,87042.0,0.01152]
[1766591784749,0.118,87046.0,87042.0,0.0114887]
[1766591784970,0.118,87046.0,87042.0,6.524e-05]
[1766591788215,0.01148831,87045.0,87042.0,6.524e-05]
[1766591788380,0.12948817,87046.0,87042.0,6.524e-05]
[1766591788562,0.118,87046.0,87042.0,6.524e-05]
[1766591789055,0.0114891,87039.0,87036.0,4.71e-06]
[1766591789222,0.17150683,87037.0,87036.0,4.71e-06]
[1766591789625,0.11406,87029.0,87026.0,4.71e-06]
[1766591790384,6.923e-05,87039.0,87027.0,0.01149068]
[1766591790584,0.01166833,87039.0,87028.0,0.01149055]
[1766591790788,0.00017923,87039.0,87028.0,0.06894329]
[1766591790989,0.05762484,87039.0,87028.0,0.01149055]
[1766591791187,0.00017923,87039.0,87028.0,0.01149055]
[1766591791374,0.00017923,87039.0,87031.0,0.0574505]
[1766591791581,2.3e-07,87039.0,87032.0,0.01149002]
[1766591791783,2.3e-07,87039.0,87031.0,0.06894087]
[1766591792691,2.3e-07,87039.0,87030.0,0.01149029]
[1766591792876,2.3e-07,87039.0,87031.0,0.01149015]
[1766591793079,2.3e-07,87039.0,87032.0,0.01152]
[1766591793679,0.12554976,87034.0,87028.0,0.01152]
[1766591793881,0.11406,87034.0,87028.0,0.01152]
[1766591795474,0.11406,87034.0,87028.0,0.02301055]
[1766591795754,0.11406,87034.0,87028.0,0.01152]
[1766591796627,0.11406,87034.0,87019.0,0.22994454]
[1766591796628,0.01149068,87027.0,87019.0,0.00011]
[1766591796824,0.11406,87025.0,87016.0,0.01152]
[1766591797166,0.11406,87025.0,87016.0,0.08047263]
[1766591797362,0.11406,87025.0,87016.0,0.01152]
[1766591797563,0.06894792,87023.0,87013.0,0.01152]
[1766591797770,0.11406,87022.0,87013.0,0.01152]
[1766591798073,0.11406,87022.0,87013.0,0.02301253]
[1766591798282,0.01149147,87021.0,87013.0,0.01152]
[1766591798456,0.11406,87021.0,87013.0,0.01152]
[1766591798790,0.11406,87021.0,87013.0,0.02301253]
[1766591798931,0.11406,87021.0,87015.0,0.01149227]
[1766591799135,0.11406,87021.0,87014.0,0.0114924]
[1766591799336,0.11406,87021.0,87013.0,0.02301253]
[1766591799942,0.11406,87021.0,87014.0,0.0114924]
[1766591800415,0.11406,87021.0,87014.0,0.06895433]
[1766591800825,0.11406,87021.0,87013.0,0.01152]
[1766591801301,0.12555147,87021.0,87013.0,0.01152]
[1766591801510,0.01149187,87018.0,87002.0,0.01149398]
[1766591801639,0.12555227,87015.0,87004.0,0.05748]
[1766591802045,0.0114924,87014.0,87004.0,0.05748]
[1766591802254,0.11406,87015.0,87005.0,0.01149359]
[1766591802473,0.11406,87015.0,87008.0,0.01149319]
[1766591802649,0.11406,87015.0,87007.0,0.0689593]
[1766591802650,0.11406,87015.0,87009.0,0.0689581]
[1766591802854,0.01152,87017.0,87015.0,0.000549]
[1766591803309,0.11406,87023.0,87014.0,0.0114924]
[1766591803594,0.01152,87019.0,87017.0,0.00055]
[1766591803890,0.01152,87019.0,87010.0,0.01149293]
[1766591804088,0.01152,87019.0,87010.0,0.06895727]
[1766591804328,0.01152,87019.0,87010.0,0.01149293]
[1766591804486,0.01152,87019.0,87009.0,0.05746466]
[1766591804688,0.01152,87019.0,87010.0,0.01149293]
[1766591804872,0.01152,87019.0,87014.0,0.0114924]
[1766591805075,0.01149002,87032.0,87018.0,0.05745875]
[1766591805450,0.11611,87033.0,87022.0,0.01149134]
[1766591805613,0.01152,87031.0,87021.0,0.01149147]
[1766591805763,0.06894215,87030.0,87019.0,0.01149174]
[1766591805964,0.01149055,87028.0,87017.0,0.023012]
[1766591806181,0.06894215,87030.0,87017.0,0.08047188]
[1766591806604,0.01149042,87029.0,87018.0,0.01149187]
[1766591806980,0.01149042,87029.0,87017.0,0.08047188]
[1766591806981,0.01149042,87029.0,87017.0,0.08047167]
[1766591807185,0.06894215,87030.0,87019.0,0.01149174]
[1766591807617,0.02301015,87031.0,87019.0,0.01149174]
[1766591807817,0.01149134,87022.0,87017.0,0.01152]
[1766591808186,0.000549,87017.0,87013.0,0.01152]
[1766591808522,0.11611,87022.0,87013.0,0.01152]
[1766591808684,0.11611,87022.0,87014.0,0.0114924]
[1766591808887,0.11611,87022.0,87016.0,0.01149213]
[1766591809089,0.01149108,87024.0,87012.0,0.06895571]
[1766591809310,0.01149121,87023.0,87011.0,0.01149279]
[1766591809673,0.01149108,87024.0,87012.0,0.05746332]
[1766591809836,0.02301095,87025.0,87014.0,0.0114924]
[1766591810620,0.01152,87025.0,87015.0,0.01149227]
[1766591810828,0.01152,87025.0,87014.0,0.06895411]
[1766591811199,0.01149108,87024.0,87013.0,0.01149253]
[1766591811340,0.0804663,87025.0,87013.0,0.06895517]
[1766591811523,0.01152,87024.0,87014.0,0.0114924]
[1766591811875,0.01152,87024.0,87013.0,0.01149253]
[1766591811876,0.06897545,87024.0,87004.0,0.22987239]
[1766591812018,0.02301108,87024.0,87012.0,0.06895562]
[1766591812867,0.08046667,87024.0,87012.0,0.06895562]
[1766591813107,0.02301108,87024.0,87013.0,0.01149253]
[1766591813609,0.02301108,87024.0,87009.0,0.01149306]
[1766591813610,0.01149161,87020.0,87009.0,0.01149306]
[1766591813796,0.127602,87017.0,87008.0,0.01152]
[1766591814094,0.11611,87015.0,87003.0,0.01149385]
[1766591814310,0.11611,87015.0,87005.0,0.06896142]
[1766591814459,0.11611,87015.0,87006.0,0.01149346]
[1766591814666,0.11611,87015.0,87007.0,0.01149332]
[1766591814888,0.11611,87015.0,87012.0,0.01149266]
[1766591815236,0.11611,87015.0,87010.0,0.01149293]
[1766591815657,0.01152,87017.0,87012.0,0.01149266]
[1766591815931,0.01152,87017.0,87013.0,0.06895468]
[1766591816229,0.01152,87019.0,87015.0,0.06895306]
[1766591816427,0.01152,87019.0,87014.0,0.0114924]
[1766591816774,0.01152,87019.0,87014.0,0.06895417]
[1766591816979,0.01152,87019.0,87015.0,0.01149227]
[1766591817531,0.01152,87020.0,87015.0,0.01149227]
[1766591817678,0.01152,87020.0,87016.0,0.01149213]
[1766591817881,0.01148963,87035.0,87020.0,0.12949161]
[1766591818094,0.01152,87035.0,87022.0,0.12949134]
[1766591818297,0.01152,87035.0,87026.0,0.01149081]
[1766591818669,0.01152,87035.0,87025.0,0.06894563]
[1766591818815,0.01152,87035.0,87025.0,0.01149095]
[1766591819011,0.01152,87035.0,87020.0,0.01152]
[1766591819012,0.000549,87025.0,87020.0,0.01152]
[1766591819221,0.14797656,87031.0,87022.0,0.01149134]
[1766591819416,0.14797656,87031.0,87020.0,0.02301161]
[1766591819969,0.20542745,87031.0,87020.0,0.02301161]
[1766591820116,0.01152,87030.0,87020.0,0.02301161]
[1766591820313,0.01152,87030.0,87020.0,0.01152]
[1766591820537,0.01152,87030.0,87020.0,0.02301161]
[1766591820781,0.000549,87020.0,87017.0,0.01152]
[1766591820932,0.000549,87020.0,87010.0,0.17956445]
[1766591820933,0.00055,87017.0,87014.0,0.01152]
[1766591821333,0.01149161,87020.0,87014.0,0.01152]
[1766591821576,0.0574581,87020.0,87014.0,0.01152]
[1766591821776,0.01149161,87020.0,87014.0,0.01152]
[1766591822126,0.06894887,87021.0,87014.0,0.01152]
[1766591822462,0.000549,87014.0,87011.0,0.01152]
[1766591822658,0.01152,87023.0,87013.0,0.01149253]
[1766591823222,0.01152,87023.0,87014.0,0.0114924]
[1766591823524,0.01152,87023.0,87013.0,0.06895492]
[1766591823525,0.01152,87023.0,87012.0,0.0689557]
[1766591823885,0.01152,87023.0,87013.0,0.01149253]
[1766591824082,0.08046778,87023.0,87011.0,0.02301279]
[1766591824311,0.01149134,87022.0,87011.0,0.02301279]
[1766591824490,0.01149134,87022.0,87011.0,0.01152]
[1766591824693,0.01152,87022.0,87011.0,0.01152]
[1766591825033,0.01152,87022.0,87012.0,0.01149266]
[1766591825191,0.01152,87022.0,87011.0,0.02301279]
[1766591825398,0.02301134,87022.0,87011.0,0.02301279]
[1766591825621,0.01152,87022.0,87012.0,0.01149266]
[1766591826020,0.01152,87022.0,87011.0,0.02301279]
[1766591826425,0.01152,87022.0,87012.0,0.01149266]
[1766591826597,0.01152,87022.0,87012.0,0.06895591]
[1766591827013,0.12041,87028.0,87014.0,0.0114924]
[1766591827243,0.06894494,87026.0,87013.0,0.05746211]
[1766591827452,0.06894494,87026.0,87015.0,0.01149227]
[1766591827750,0.08046458,87027.0,87015.0,0.01149227]
[1766591827950,0.01149095,87025.0,87014.0,0.06895415]
[1766591828115,0.06894505,87026.0,87015.0,0.01149227]
[1766591828509,0.06894505,87026.0,87014.0,0.06895415]
[1766591828510,0.01149095,87025.0,87014.0,0.06895415]
[1766591828849,0.01149134,87022.0,87011.0,0.01152]
[1766591828994,0.01149121,87023.0,87011.0,0.02301279]
[1766591829198,0.01152,87022.0,87012.0,0.01149266]
[1766591829418,0.01152,87022.0,87011.0,0.13362]
[1766591829633,0.01152,87022.0,87012.0,0.01149266]
[1766591829879,0.01152,87022.0,87015.0,0.01149227]
[1766591830081,0.01152,87022.0,87013.0,0.01149253]
[1766591830335,0.01152,87022.0,87011.0,0.13362]
[1766591830627,0.01152,87022.0,87015.0,0.05746075]
[1766591830844,0.01152,87022.0,87014.0,0.06895394]
[1766591831119,0.01152,87022.0,87014.0,0.0114924]
[1766591831479,0.01152,87022.0,87015.0,0.01149227]
[1766591831830,0.01152,87022.0,87013.0,0.01149253]
[1766591832057,0.01152,87022.0,87015.0,0.01149227]
[1766591832262,0.01152,87022.0,87016.0,0.01149213]
[1766591832464,0.01152,87022.0,87017.0,0.011492]
[1766591832578,0.01152,87022.0,87016.0,0.01149213]
[1766591832983,0.01152,87022.0,87015.0,0.0689536]
[1766591832984,0.01152,87022.0,87015.0,0.01149227]
[1766591833393,0.01152,87022.0,87014.0,0.0114924]
[1766591833647,0.01152,87022.0,87013.0,0.06895508]
[1766591833858,0.01152,87022.0,87015.0,0.01149227]
[1766591835134,0.01152,87022.0,87016.0,0.01149213]
[1766591835589,0.01152,87022.0,87017.0,0.011492]
[1766591836097,0.01152,87022.0,87017.0,0.06895147]
[1766591836313,0.01152,87022.0,87018.0,0.01149187]
[1766591836716,0.12041,87020.0,87001.0,0.1221]
[1766591837007,0.12041,87014.0,87007.0,0.00719854]
[1766591837210,0.12041,87014.0,87011.0,0.01149279]
[1766591837360,0.12041,87014.0,87012.0,0.05176318]
[1766591837558,0.119861,87014.0,87012.0,0.03466318]
[1766591837753,0.01152,87015.0,87010.0,0.01149293]
[1766591837981,0.01152,87015.0,87007.0,0.01142313]
[1766591837982,0.01152,87015.0,87009.0,0.01149306]
[1766591838210,0.01152,87015.0,87010.0,0.00579293]
[1766591838419,0.01152,87015.0,87010.0,0.00569596]
[1766591838714,0.01152,87015.0,87010.0,0.01149293]
[1766591839028,0.01152,87015.0,87009.0,0.06895789]
[1766591839929,0.01152,87015.0,87010.0,0.01149293]
[1766591841355,0.01152,87018.0,87013.0,0.01149253]
[1766591841584,0.01152,87019.0,87013.0,0.06895466]
[1766591842500,0.01152,87019.0,87013.0,0.01149253]
[1766591842625,0.22979098,87036.0,87014.0,0.1221]
[1766591842832,0.06894396,87028.0,87020.0,0.1221]
[1766591843032,0.01152,87027.0,87020.0,0.1221]
[1766591843241,0.000549,87020.0,87013.0,0.01152]
[1766591843468,0.12041,87019.0,87008.0,0.01152]
[1766591843668,0.012069,87020.0,87003.0,0.01149385]
[1766591843669,0.12041,87015.0,87003.0,0.01149385]
[1766591843869,0.12041,87015.0,87004.0,0.01152]
[1766591844292,0.12041,87015.0,87005.0,0.01149359]
[1766591844496,0.12041,87015.0,87004.0,0.08048215]
[1766591844497,0.12041,87015.0,87004.0,0.02301372]
[1766591844700,0.12041,87015.0,87009.0,0.01149306]
[1766591845054,0.12041,87015.0,87008.0,0.01149319]
[1766591845199,0.12041,87015.0,87007.0,0.06895986]
[1766591845417,0.12041,87015.0,87008.0,0.01149319]
[1766591845622,0.12041,87015.0,87007.0,0.06895978]
[1766591845814,0.12041,87015.0,87005.0,0.06896148]
[1766591846034,0.12041,87015.0,87006.0,0.01149346]
[1766591846555,0.13190227,87015.0,87004.0,0.00582298]
[1766591846702,0.12041,87015.0,87008.0,0.01149319]
[1766591847098,0.12041,87015.0,87007.0,0.01149332]
[1766591847803,0.12041,87015.0,87006.0,0.01149346]
[1766591848221,0.12041,87015.0,87006.0,0.06896049]
[1766591848626,0.01152,87017.0,87010.0,0.1575]
[1766591848825,0.01152,87021.0,87014.0,0.1575]
[1766591849059,0.01152,87021.0,87015.0,0.01149227]
[1766591849466,0.01149055,87028.0,87014.0,0.1575]
[1766591849644,0.01152,87024.0,87015.0,0.06895302]
[1766591849844,0.01152,87024.0,87016.0,0.01149213]
[1766591850251,0.01152,87024.0,87014.0,0.1689924]
[1766591850449,0.01152,87024.0,87015.0,0.01149227]
[1766591850869,1e-08,87032.0,87029.0,0.01149042]
[1766591851200,0.06173222,87055.0,87029.0,0.01149042]
[1766591851201,0.01152,87045.0,87036.0,0.06893689]
[1766591851413,0.01152,87045.0,87036.0,0.01094049]
[1766591851568,0.01152,87045.0,87037.0,0.05744683]
[1766591851893,0.01152,87045.0,87038.0,0.05744617]
[1766591852313,0.01152,87045.0,87035.0,0.01148963]
[1766591852314,0.00055,87038.0,87035.0,0.01148963]
[1766591852515,0.01152,87045.0,87035.0,0.01148963]
[1766591852880,0.01152,87043.0,87037.0,0.01148936]
[1766591853083,0.01152,87043.0,87040.0,0.01148897]
[1766591853481,0.15673,87052.0,87041.0,0.01148883]
[1766591853722,0.01148699,87055.0,87042.0,0.0114887]
[1766591853921,0.01152,87051.0,87042.0,0.0114887]
[1766591854360,0.01152,87051.0,87044.0,0.01148844]
[1766591854507,0.01148699,87055.0,87044.0,0.01148844]
[1766591854733,0.08055116,87056.0,87041.0,0.21494381]
[1766591854934,0.00055,87044.0,87042.0,0.05744339]
[1766591855101,0.06892289,87054.0,87041.0,0.16898883]
[1766591855102,0.01152,87050.0,87041.0,0.16898883]
[1766591855304,0.01152,87050.0,87042.0,0.0114887]
[1766591855944,0.01148778,87049.0,87041.0,0.1575]
[1766591856146,0.02756656,87054.0,87044.0,0.01148844]
[1766591856347,0.01148725,87053.0,87043.0,0.01148857]
[1766591856671,0.02756656,87054.0,87041.0,0.1632918]
[1766591856800,0.02756656,87054.0,87044.0,0.01148844]
[1766591857415,0.02756656,87054.0,87045.0,0.01148831]
[1766591857682,0.02756656,87054.0,87044.0,0.01148844]
[1766591858231,0.00011,87056.0,87044.0,0.01148844]
[1766591858430,0.01148699,87055.0,87044.0,0.01148844]
[1766591858677,0.06892197,87055.0,87044.0,0.01148844]
[1766591858879,0.06892273,87054.0,87043.0,0.01152]
[1766591859038,0.00114899,87055.0,87043.0,0.02300857]
[1766591859245,0.01148712,87054.0,87044.0,0.01148844]
[1766591859453,0.01148712,87054.0,87043.0,0.02300857]
[1766591859875,0.01148712,87054.0,87044.0,0.01148844]
[1766591860284,0.00114899,87053.0,87043.0,0.01152]
[1766591860510,0.01148844,87044.0,87038.0,0.01152]
[1766591860746,0.01148897,87040.0,87027.0,0.06894374]
[1766591860991,0.06893657,87037.0,87027.0,6.923e-05]
[1766591861231,0.01148963,87035.0,87027.0,6.923e-05]
[1766591861406,0.05744779,87036.0,87027.0,6.923e-05]
[1766591861608,0.01148976,87034.0,87027.0,6.923e-05]
[1766591861745,0.06893827,87035.0,87027.0,6.923e-05]
[1766591861946,0.25065625,87037.0,87027.0,6.923e-05]
[1766591862369,0.01148989,87033.0,87027.0,6.923e-05]
[1766591862566,0.01148976,87034.0,87027.0,6.923e-05]
[1766591862951,0.01149029,87030.0,87015.0,0.01149227]
[1766591863176,0.01149068,87027.0,87017.0,0.01152]
[1766591863370,0.06894343,87028.0,87017.0,0.023122]
[1766591863581,0.06894337,87028.0,87017.0,0.023122]
[1766591864058,0.01149068,87027.0,87017.0,0.023122]
[1766591864297,0.08046337,87028.0,87017.0,0.023122]
[1766591864484,0.18172,87027.0,87017.0,0.01163]
[1766591864874,0.19321068,87027.0,87017.0,0.023122]
[1766591865062,0.19321068,87027.0,87017.0,0.01163]
[1766591865273,0.19321068,87027.0,87018.0,0.06325406]
[1766591865274,0.18172,87027.0,87018.0,0.06325406]
[1766591865478,0.01152,87029.0,87021.0,0.01149147]
[1766591865673,0.01152,87029.0,87022.0,0.05745635]
[1766591865880,0.01152,87029.0,87022.0,0.06894793]
[1766591866263,0.01152,87029.0,87023.0,0.01149121]
[1766591866715,0.01152,87028.0,87023.0,0.01149121]
[1766591866875,0.01148989,87033.0,87023.0,0.01149121]
[1766591867074,0.01152,87032.0,87023.0,0.01149121]
[1766591867289,0.01149068,87027.0,86985.0,0.45984353]
[1766591867497,0.05747258,86998.0,86959.0,0.08270396]
[1766591867675,0.05748117,86985.0,86967.0,0.05749262]
[1766591867877,0.04596,87002.0,86967.0,0.05749262]
[1766591867878,0.01152,86987.0,86974.0,0.01149768]
[1766591868164,0.01152,86986.0,86979.0,0.01149702]
[1766591868280,0.010971,86986.0,86980.0,0.01149689]
[1766591868483,0.010971,86986.0,86979.0,0.01149702]
[1766591868796,0.01152,86986.0,86982.0,0.01149663]
[1766591869000,0.01152,86986.0,86983.0,0.01149649]
[1766591869197,0.18172,86997.0,86987.0,0.01149597]
[1766591869400,0.18172,86997.0,86979.0,0.18377]
[1766591869401,0.01149517,86993.0,86979.0,0.18377]
[1766591869601,0.01152,86996.0,86985.0,0.01149623]
[1766591869936,0.01152,86996.0,86985.0,0.06897704]
[1766591870240,0.01152,86996.0,86986.0,0.0114961]
[1766591870470,0.02301478,86996.0,86985.0,0.01149623]
[1766591870598,0.02301478,86996.0,86979.0,0.02301702]
[1766591870788,0.01149504,86994.0,86982.0,0.01149663]
[1766591870987,0.01149504,86994.0,86983.0,0.01149649]
[1766591870988,0.01149517,86993.0,86983.0,0.01149649]
[1766591871186,0.01149504,86994.0,86983.0,0.01149649]
[1766591871413,0.01149517,86993.0,86981.0,0.19526676]
[1766591871942,0.06896974,86995.0,86982.0,0.01149663]
[1766591872305,0.01152,86996.0,86983.0,0.01149649]
[1766591872506,0.19321464,86997.0,86981.0,0.18377]
[1766591872845,0.000549,86981.0,86976.0,0.01152]
[1766591873076,0.2047357,86989.0,86976.0,0.01152]
[1766591873207,0.00114899,86988.0,86976.0,0.01152]
[1766591873427,0.2047357,86989.0,86980.0,0.01149689]
[1766591873428,0.19324,86989.0,86980.0,0.01149689]
[1766591873644,0.19324,86989.0,86981.0,0.01149676]
[1766591873850,0.19324,86989.0,86977.0,0.01149729]
[1766591873851,0.01152,86988.0,86977.0,0.01149729]
[1766591874068,0.01152,86988.0,86978.0,0.01149716]
[1766591875395,0.02301583,86988.0,86977.0,0.19526729]
[1766591875543,0.02301583,86988.0,86977.0,0.01149729]
[1766591875746,0.01152,86988.0,86977.0,0.05748634]
[1766591875951,0.01152,86988.0,86979.0,0.01149702]
[1766591876348,0.01152,86988.0,86978.0,0.01149716]
[1766591877156,0.01152,86988.0,86979.0,0.01149702]
[1766591877348,0.01152,86988.0,86978.0,0.01149716]
[1766591877549,0.01152,86988.0,86979.0,0.01149702]
[1766591877807,0.01152,86988.0,86976.0,0.01152]
[1766591877808,0.01149623,86985.0,86976.0,0.01152]
[1766591877971,0.01149597,86987.0,86976.0,0.01152]
[1766591877972,0.0114961,86986.0,86976.0,0.01152]
[1766591878172,0.01152,86988.0,86980.0,0.01149689]
[1766591878591,0.01152,86988.0,86981.0,0.01149676]
[1766591878789,0.01152,86988.0,86983.0,0.01149649]
[1766591879315,0.00870951,86988.0,86983.0,0.01149649]
[1766591879676,0.01156,86988.0,86983.0,0.06897898]
[1766591879893,0.01156,86988.0,86984.0,0.01149636]
[1766591880096,0.01101,86988.0,86985.0,0.06897735]
[1766591880419,0.01156,86990.0,86987.0,0.01149597]
[1766591880617,0.01156,86990.0,86985.0,0.01149623]
[1766591880809,0.01156,86990.0,86986.0,0.0114961]
[1766591881002,0.01156,86990.0,86986.0,0.06897651]
[1766591881249,0.01156,86990.0,86984.0,0.05748179]
[1766591881420,0.01156,86990.0,86985.0,0.01149623]
[1766591881627,0.06896316,87003.0,86985.0,0.01149623]
[1766591881790,0.01149319,87008.0,86992.0,0.0114953]
[1766591881989,0.01149227,87015.0,87000.0,0.01149425]
[1766591882302,0.01149227,87015.0,86947.0,2.87529668]
[1766591882303,0.01149266,87012.0,86997.0,0.20784]
[1766591882499,0.01156,87014.0,86995.0,0.01156]
[1766591882500,0.000549,86997.0,86995.0,0.01156]